fUST/lending_fUST_20250621
["ID","MTS","AMOUNT","RATE_DAILY","PERIOD"]
[366786258,1750452646458,-500.0,0.00021587,2]
[366786259,1750452646467,-500.0,0.00021587,2]
[366786260,1750452646476,-500.0,0.00021587,2]
[366786261,1750452646486,-500.0,0.00021587,2]
[366786262,1750452646496,-500.0,0.00021587,2]
[366786263,1750452646506,-500.0,0.00021587,2]
[366786264,1750452646515,-500.0,0.00021587,2]
[366786265,1750452646524,-500.0,0.00021587,2]
[366786266,1750452646534,-161.69927233,0.00021587,2]
[366786267,1750452646544,-500.0,0.00021587,2]
[366786268,1750452646553,-500.0,0.00021587,2]
[366786269,1750452646563,-500.0,0.00021587,2]
[366786270,1750452646572,-500.0,0.00021587,2]
[366786271,1750452646582,-500.0,0.00021587,2]
[366786272,1750452646591,-500.0,0.00021587,2]
[366786273,1750452646600,-941.74252787,0.0002159,5]
[366786274,1750452646610,-429.82901922,0.00021602,2]
[366786275,1750452646619,-265.5,0.000217,2]
[366786276,1750452646628,-941.74252787,0.00021762,5]
[366786277,1750452646638,-424.85694595,0.00021854,2]
[366786278,1750452646648,-523.92420239,0.00021854,2]
[366786279,1750452646657,-160.0,0.00021854,2]
[366786280,1750452646668,-846.08887863,0.00021854,2]
[366786281,1750452646678,-160.0,0.00021858,2]
[366786282,1750452646687,-160.0,0.00021858,2]
[366786283,1750452646697,-157.57083203,0.00021858,2]
[366786284,1750452646710,-55.94474215,0.00021858,2]
[366786285,1750452646719,-418.52327535,0.00021858,2]
[366786286,1750452646735,-387.35102918,0.00021858,2]
[366786287,1750452646747,-429.35548269,0.00021858,2]
[366786314,1750453120275,231.161691,0.00013699,2]
[366786319,1750453657698,985.83269318,0.000189,2]
[366786321,1750453692378,657.22179545,0.000189,2]
[366786347,1750453832640,-160.516572,0.00019178,2]
[366786349,1750453832651,-160.0,0.00019283,2]
[366786351,1750453832660,-300.0,0.00019289,2]
[366786353,1750453832670,-300.0,0.00019289,2]
[366786354,1750453832683,-1200.0,0.00019289,2]
[366786356,1750453832693,-500.0,0.0001929,2]
[366786358,1750453832703,-500.0,0.0001929,2]
[366786360,1750453832712,-500.0,0.0001929,2]
[366786362,1750453832722,-500.0,0.0001929,2]
[366786364,1750453832731,-500.0,0.0001929,2]
[366786366,1750453832741,-303.64167035,0.0001929,2]
[366786368,1750453832750,-446.502953,0.00019296,2]
[366786369,1750453832760,-500.0,0.00019902,2]
[366786370,1750453832770,-500.0,0.00019902,2]
[366786371,1750453832780,-500.0,0.00019902,2]
[366786372,1750453832789,-500.0,0.00019902,2]
[366786373,1750453832799,-500.0,0.00019902,2]
[366786374,1750453832808,-500.0,0.00019902,2]
[366786375,1750453832819,-12415.61483263,0.00019903,2]
[366786376,1750453832830,-6398.67979468,0.00019903,2]
[366786384,1750453832911,-6085.70537269,0.00019903,2]
[366786386,1750453832921,-163.2103673,0.00020007,2]
[366786388,1750453832931,-5000.0,0.00020037,2]
[366786390,1750453832940,-429.82901922,0.00020098,2]
[366786392,1750453832950,-231.161691,0.00020187,2]
[366786394,1750453832960,-181.0,0.00020256,2]
[366786396,1750453832969,-181.0,0.00020281,2]
[366786398,1750453832979,-181.0,0.00020333,2]
[366786400,1750453832989,-429.82901922,0.00020377,2]
[366786402,1750453832998,-163.21036726,0.00020714,2]
[366786404,1750453833008,-365.6807665,0.00020741,2]
[366786406,1750453833018,-365.6807665,0.00020741,2]
[366786408,1750453833028,-365.6807665,0.00020741,2]
[366786410,1750453833038,-429.82901922,0.0002079,2]
[366786412,1750453833047,-429.82901922,0.00020827,2]
[366786414,1750453833058,-168.0,0.00020835,2]
[366786416,1750453833068,-846.08887863,0.00020862,2]
[366786418,1750453833078,-168.0,0.00020908,2]
[366786420,1750453833087,-181.0,0.00020925,2]
[366786422,1750453833098,-1194.18929795,0.00021,4]
[366786424,1750453833107,-420.0,0.00021019,2]
[366786426,1750453833117,-420.0,0.00021019,2]
[366786429,1750453833127,-1194.18929773,0.00021072,4]
[366786431,1750453833138,-354.0,0.0002112,2]
[366786433,1750453833147,-365.6807665,0.00021141,2]
[366786435,1750453833157,-168.0,0.00021144,2]
[366786437,1750453833167,-429.82901922,0.00021148,2]
[366786439,1750453833177,-365.6807665,0.00021205,2]
[366786441,1750453833186,-365.6807665,0.00021205,2]
[366786443,1750453833196,-365.6807665,0.00021205,2]
[366786444,1750453833206,-365.6807665,0.00021241,2]
[366786447,1750453833215,-1194.18929773,0.00021245,4]
[366786449,1750453833225,-156.526,0.00021292,2]
[366786450,1750453833234,-168.0,0.00021292,2]
[366786452,1750453833244,-5000.0,0.00021319,2]
[366786454,1750453833253,-207.4,0.00021319,2]
[366786456,1750453833263,-168.0,0.00021363,2]
[366786458,1750453833273,-317.7421866,0.00021378,2]
[366786460,1750453833282,-1194.18929773,0.00021417,5]
[366786462,1750453833292,-429.82901927,0.00021418,2]
[366786464,1750453833301,-163.21036726,0.00021421,2]
[366786466,1750453833311,-275.0,0.00021466,2]
[366786468,1750453833321,-500.0,0.00021543,2]
[366786470,1750453833330,-500.0,0.00021543,2]
[366786472,1750453833340,-160.0,0.00021548,2]
[366786474,1750453833349,-213.51557418,0.00021548,2]
[366786476,1750453833359,-160.0,0.0002155,2]
[366786478,1750453833369,-523.92420239,0.0002155,2]
[366786480,1750453833379,-160.0,0.0002155,2]
[366786482,1750453833389,-424.85694595,0.0002155,2]
[366786484,1750453833399,-1264.90997467,0.00021552,2]
[366786486,1750453833409,-2070.62280521,0.00021552,2]
[366786488,1750453833418,-1194.18929773,0.0002159,5]
[366786490,1750453833428,-168.0,0.00021599,2]
[366786492,1750453833438,-365.6807665,0.000216,2]
[366786494,1750453833448,-500.0,0.00021609,2]
[366786496,1750453833458,-508.50880777,0.00021609,2]
[366786498,1750453833468,-502.90397211,0.00021609,2]
[366786500,1750453833478,-500.0,0.00021609,2]
[366786502,1750453833487,-327.72958592,0.00021617,2]
[366786504,1750453833500,-500.0,0.00021645,2]
[366786506,1750453833511,-336.58583321,0.00021645,2]
[366786508,1750453833521,-500.0,0.00021645,2]
[366786510,1750453833533,-500.0,0.0002169,2]
[366786512,1750453833544,-365.6807665,0.000217,2]
[366786514,1750453833553,-365.6807665,0.000217,2]
[366786516,1750453833563,-365.6807665,0.000217,2]
[366786518,1750453833573,-365.6807665,0.000217,2]
[366786520,1750453833583,-5983.63646568,0.000217,2]
[366786522,1750453833593,-503.10535846,0.0002176,2]
[366786524,1750453833605,-1194.18929773,0.00021762,5]
[366786526,1750453833615,-550.65953211,0.00021773,2]
[366786528,1750453833625,-500.0,0.00021773,2]
[366786530,1750453833635,-500.0,0.00021773,2]
[366786532,1750453833644,-500.0,0.00021789,2]
[366786534,1750453833654,-160.0,0.00021791,2]
[366786536,1750453833663,-836.27303475,0.00021791,2]
[366786538,1750453833673,-12546.90244252,0.00021791,2]
[366786540,1750453833683,-230.06456406,0.00021791,2]
[366786542,1750453833693,-160.0,0.00021799,2]
[366786544,1750453833703,-101948.03023157,0.000218,5]
[366786546,1750453833713,-238.95,0.000218,2]
[366786548,1750453833723,-150.0,0.000219,2]
[366786550,1750453833733,-245.53491983,0.00021904,2]
[366786552,1750453833744,-460.0,0.00021917,2]
[366786554,1750453833754,-435.21162642,0.00021917,2]
[366786556,1750453833764,-494.60040636,0.00021917,2]
[366786558,1750453833774,-460.0,0.00021917,2]
[366786560,1750453833784,-500.0,0.00021917,2]
[366786562,1750453833795,-460.0,0.00021917,2]
[366786564,1750453833806,-460.0,0.00021917,2]
[366786566,1750453833817,-460.0,0.00021917,2]
[366786568,1750453833826,-460.0,0.00021917,2]
[366786584,1750453833981,-460.0,0.00021917,2]
[366786587,1750453833992,-460.0,0.00021917,2]
[366786589,1750453834002,-492.67,0.00021917,2]
[366786590,1750453834012,-460.0,0.00021917,2]
[366786592,1750453834023,-460.0,0.00021917,2]
[366786595,1750453834034,-460.0,0.00021917,2]
[366786597,1750453834043,-460.0,0.00021917,2]
[366786599,1750453834054,-460.0,0.00021917,2]
[366786601,1750453834063,-460.0,0.00021917,2]
[366786603,1750453834073,-460.0,0.00021917,2]
[366786605,1750453834083,-460.0,0.00021917,2]
[366786607,1750453834093,-599.11,0.00021917,2]
[366786609,1750453834103,-460.0,0.00021917,2]
[366786611,1750453834113,-460.0,0.00021917,2]
[366786613,1750453834122,-460.0,0.00021917,2]
[366786615,1750453834132,-199.7779103,0.00021917,2]
[366786617,1750453834141,-460.0,0.00021917,2]
[366786619,1750453834151,-460.0,0.00021917,2]
[366786620,1750453834163,-460.0,0.00021917,2]
[366786622,1750453834172,-460.0,0.00021917,2]
[366786624,1750453834182,-460.0,0.00021917,2]
[366786626,1750453834192,-460.0,0.00021917,2]
[366786628,1750453834201,-460.0,0.00021917,2]
[366786630,1750453834211,-460.0,0.00021917,2]
[366786632,1750453834220,-460.0,0.00021917,2]
[366786634,1750453834230,-460.0,0.00021917,2]
[366786636,1750453834239,-460.0,0.00021917,2]
[366786638,1750453834249,-460.0,0.00021917,2]
[366786640,1750453834258,-460.0,0.00021917,2]
[366786642,1750453834268,-1194.18929773,0.00021934,6]
[366786644,1750453834278,-170.0,0.00022,2]
[366786646,1750453834288,-1000.0,0.00022091,2]
[366786648,1750453834297,-1194.18929773,0.00022107,6]
[366786650,1750453834307,-163.21036726,0.00022128,2]
[366786652,1750453834316,-1000.0,0.00022157,2]
[366786654,1750453834326,-1000.0,0.00022157,2]
[366786656,1750453834335,-817.9816289,0.00022164,2]
[366786658,1750453834345,-151.0,0.00022191,7]
[366786660,1750453834355,-460.0,0.00022191,2]
[366786662,1750453834365,-460.0,0.00022191,2]
[366786664,1750453834375,-460.0,0.00022191,2]
[366786667,1750453834395,-460.0,0.00022191,2]
[366786669,1750453834408,-460.0,0.00022191,2]
[366786671,1750453834418,-599.11,0.00022191,2]
[366786673,1750453834427,-460.0,0.00022191,2]
[366786675,1750453834439,-460.0,0.00022191,2]
[366786677,1750453834449,-460.0,0.00022191,2]
[366786680,1750453834459,-460.0,0.00022191,2]
[366786682,1750453834469,-460.0,0.00022191,2]
[366786684,1750453834480,-460.0,0.00022191,2]
[366786686,1750453834490,-460.0,0.00022191,2]
[366786688,1750453834500,-515.33291534,0.00022193,2]
[366786690,1750453834510,-5983.63646566,0.00022243,2]
[366786692,1750453834520,-1281.961545,0.00022267,4]
[366786694,1750453834531,-1194.18929773,0.00022279,6]
[366786696,1750453834540,-1000.0,0.00022321,2]
[366786698,1750453834550,-1000.0,0.00022321,2]
[366786700,1750453834561,-684.21421362,0.00022337,2]
[366786702,1750453834572,-168.0,0.00022346,2]
[366786704,1750453834583,-168.0,0.00022378,2]
[366786706,1750453834593,-168.0,0.00022405,2]
[366786708,1750453834606,-168.0,0.00022415,2]
[366786710,1750453834616,-1194.18929773,0.00022452,7]
[366786712,1750453834627,-475.31503575,0.00022465,2]
[366786714,1750453834638,-460.0,0.00022465,2]
[366786716,1750453834650,-460.0,0.00022465,2]
[366786718,1750453834660,-460.0,0.00022465,2]
[366786720,1750453834673,-599.11,0.00022465,2]
[366786722,1750453834684,-460.0,0.00022465,2]
[366786724,1750453834698,-597.64,0.00022465,2]
[366786726,1750453834709,-460.0,0.00022465,2]
[366786728,1750453834719,-460.0,0.00022465,2]
[366786730,1750453834729,-460.0,0.00022465,2]
[366786732,1750453834739,-460.0,0.00022465,2]
[366786734,1750453834750,-460.0,0.00022465,2]
[366786737,1750453834761,-160.516572,0.00022603,2]
[366786738,1750453834771,-1194.18929773,0.00022624,7]
[366786739,1750453834782,-800.0,0.00022628,2]
[366786740,1750453834791,-215.0738,0.00022688,2]
[366786742,1750453834801,-509.50816501,0.00022705,2]
[366786744,1750453834812,-500.0,0.00022705,2]
[366786745,1750453834822,-460.0,0.00022739,2]
[366786746,1750453834832,-460.0,0.00022739,2]
[366786747,1750453834842,-460.0,0.00022739,2]
[366786748,1750453834852,-599.11,0.00022739,2]
[366786749,1750453834862,-460.0,0.00022739,2]
[366786750,1750453834871,-460.0,0.00022739,2]
[366786751,1750453834882,-460.0,0.00022739,2]
[366786752,1750453834891,-460.0,0.00022739,2]
[366786753,1750453834901,-460.0,0.00022739,2]
[366786754,1750453834911,-460.0,0.00022739,2]
[366786755,1750453834921,-150.0,0.00022745,2]
[366786756,1750453834931,-152.736,0.00022745,2]
[366786757,1750453834941,-2160.0,0.00022745,2]
[366786758,1750453834951,-406.0,0.00022745,2]
[366786759,1750453834961,-1748.0,0.00022772,3]
[366786760,1750453834971,-156.36051524,0.00022772,3]
[366786761,1750453834981,-1748.0,0.00022772,3]
[366786762,1750453834991,-1748.0,0.00022772,3]
[366786763,1750453835000,-756.96256108,0.00022772,3]
[366786764,1750453835010,-317.0,0.00022772,3]
[366786765,1750453835022,-317.0,0.00022772,3]
[366786766,1750453835031,-317.0,0.00022772,3]
[366786767,1750453835041,-317.0,0.00022772,3]
[366786768,1750453835050,-5983.63646566,0.00022787,2]
[366786769,1750453835060,-1194.18929773,0.00022797,7]
[366786770,1750453835070,-500.0,0.00022799,7]
[366786771,1750453835080,-1275.88,0.000228,7]
[366786772,1750453835089,-163.21036726,0.00022836,2]
[366786773,1750453835099,-1500.0,0.00022868,2]
[366786774,1750453835109,-1004.25083734,0.00022868,2]
[366786775,1750453835119,-5725.19446054,0.000229,2]
[366786776,1750453835129,-587.0,0.00022903,2]
[366786777,1750453835139,-587.0,0.00022903,2]
[366786778,1750453835148,-794.0,0.00022958,2]
[366786779,1750453835158,-1194.18929773,0.00022969,8]
[366786780,1750453835168,-93164.10206161,0.0002299,2]
[366786781,1750453835178,-151.0,0.0002299,7]
[366786782,1750453835188,-151.0,0.0002299,7]
[366786783,1750453835198,-153.829744,0.0002299,7]
[366786784,1750453835208,-151.0,0.0002299,7]
[366786785,1750453835217,-151.0,0.0002299,7]
[366786786,1750453835227,-500.0,0.00023,2]
[366786787,1750453835237,-460.0,0.00023013,2]
[366786788,1750453835247,-151.0,0.00023013,7]
[366786789,1750453835256,-460.0,0.00023013,2]
[366786790,1750453835266,-460.0,0.00023013,2]
[366786791,1750453835275,-599.11,0.00023013,2]
[366786792,1750453835285,-151.0,0.00023013,7]
[366786793,1750453835295,-460.0,0.00023013,2]
[366786794,1750453835305,-460.0,0.00023013,2]
[366786795,1750453835315,-460.0,0.00023013,2]
[366786796,1750453835324,-460.0,0.00023013,2]
[366786797,1750453835334,-460.0,0.00023013,2]
[366786798,1750453835343,-151.0,0.00023043,6]
[366786799,1750453835353,-1194.18929773,0.00023141,8]
[366786800,1750453835363,-160.0,0.00023169,2]
[366786801,1750453835374,-500.0,0.00023186,2]
[366786802,1750453835384,-500.0,0.00023196,2]
[366786803,1750453835393,-4601.87,0.00023233,2]
[366786804,1750453835403,-794.0,0.00023251,2]
[366786805,1750453835413,-500.0,0.0002328,2]
[366786806,1750453835423,-151.0,0.00023282,6]
[366786807,1750453835433,-460.0,0.00023287,2]
[366786808,1750453835443,-460.0,0.00023287,2]
[366786809,1750453835453,-460.0,0.00023287,2]
[366786810,1750453835463,-599.11,0.00023287,2]
[366786811,1750453835473,-460.0,0.00023287,2]
[366786812,1750453835483,-460.0,0.00023287,2]
[366786813,1750453835494,-460.0,0.00023287,2]
[366786814,1750453835503,-460.0,0.00023287,2]
[366786815,1750453835513,-460.0,0.00023287,2]
[366786816,1750453835523,-500.0,0.00023288,2]
[366786817,1750453835533,-168.0,0.00023289,2]
[366786818,1750453835543,-270.184217,0.00023308,7]
[366786819,1750453835553,-701.76739459,0.00023313,7]
[366786820,1750453835563,-1194.18929773,0.00023314,9]
[366786821,1750453835574,-151.0,0.00023314,7]
[366786822,1750453835584,-500.0,0.00023318,2]
[366786823,1750453835594,-5983.63646566,0.0002333,2]
[366786824,1750453835607,-500.0,0.00023364,2]
[366786825,1750453835618,-500.0,0.00023397,2]
[366786826,1750453835627,-151.0,0.0002343,7]
[366786827,1750453835637,-151.0,0.0002343,7]
[366786828,1750453835647,-151.0,0.0002343,7]
[366786829,1750453835657,-151.0,0.0002343,7]
[366786830,1750453835667,-151.898224,0.0002343,7]
[366786831,1750453835678,-151.0,0.0002343,7]
[366786832,1750453835688,-151.0,0.0002343,7]
[366786833,1750453835698,-151.0,0.0002343,7]
[366786834,1750453835707,-151.0,0.0002343,7]
[366786835,1750453835717,-151.0,0.0002343,7]
[366786836,1750453835728,-151.0,0.0002343,7]
[366786837,1750453835739,-317.0,0.00023431,3]
[366786838,1750453835748,-317.0,0.00023431,3]
[366786839,1750453835758,-317.0,0.00023431,3]
[366786840,1750453835768,-317.0,0.00023431,3]
[366786841,1750453835777,-317.0,0.00023431,3]
[366786842,1750453835787,-317.0,0.00023431,3]
[366786843,1750453835797,-317.0,0.00023431,3]
[366786844,1750453835807,-317.0,0.00023431,3]
[366786845,1750453835817,-317.0,0.00023431,3]
[366786846,1750453835827,-317.0,0.00023431,3]
[366786847,1750453835836,-317.0,0.00023431,3]
[366786848,1750453835846,-317.0,0.00023431,3]
[366786849,1750453835855,-317.0,0.00023431,3]
[366786850,1750453835865,-317.0,0.00023431,3]
[366786851,1750453835875,-317.0,0.00023431,3]
[366786852,1750453835885,-317.0,0.00023431,3]
[366786853,1750453835894,-168.93924067,0.00023431,3]
[366786854,1750453835904,-753.5049554,0.0002344,3]
[366786855,1750453835914,-151.0,0.0002344,7]
[366786856,1750453835923,-151.0,0.0002344,7]
[366786857,1750453835933,-160.0,0.0002344,3]
[366786858,1750453835943,-151.0,0.0002344,7]
[366786859,1750453835953,-151.0,0.0002344,7]
[366786860,1750453835964,-151.0,0.0002344,7]
[366786861,1750453835974,-151.0,0.0002344,7]
[366786862,1750453835984,-151.0,0.0002344,7]
[366786863,1750453835993,-151.0,0.0002344,7]
[366786864,1750453836003,-500.0,0.00023464,2]
[366786865,1750453836015,-500.0,0.00023471,2]
[366786866,1750453836025,-500.0,0.00023474,2]
[366786867,1750453836035,-155.192921,0.0002348,7]
[366786868,1750453836044,-1194.18929773,0.00023486,9]
[366786869,1750453836053,-500.0,0.000235,2]
[366786870,1750453836063,-160.0,0.000235,3]
[366786871,1750453836073,-12546.90244252,0.000235,3]
[366786872,1750453836083,-12546.90244252,0.000235,7]
[366786873,1750453836093,-424.85694595,0.000235,3]
[366786874,1750453836102,-160.0,0.000235,3]
[366786875,1750453836111,-836.27303475,0.000235,3]
[366786876,1750453836121,-213.51557418,0.000235,3]
[366786877,1750453836131,-213.51557418,0.000235,7]
[366786878,1750453836141,-230.06456406,0.000235,3]
[366786879,1750453836150,-151.0,0.000235,7]
[366786880,1750453836160,-523.92420239,0.000235,3]
[366786881,1750453836169,-523.92420239,0.000235,7]
[366786882,1750453836179,-151.0,0.000235,7]
[366786883,1750453836189,-500.0,0.00023507,2]
[366786884,1750453836198,-151.0,0.00023522,6]
[366786885,1750453836207,-163.21036726,0.00023543,2]
[366786886,1750453836218,-151.0,0.00023561,7]
[366786887,1750453836227,-151.0,0.00023561,7]
[366786888,1750453836237,-151.0,0.00023561,7]
[366786889,1750453836246,-151.0,0.00023561,7]
[366786890,1750453836255,-460.0,0.00023561,2]
[366786891,1750453836265,-460.0,0.00023561,2]
[366786892,1750453836275,-460.0,0.00023561,2]
[366786893,1750453836287,-599.11,0.00023561,2]
[366786894,1750453836296,-460.0,0.00023561,2]
[366786895,1750453836305,-460.0,0.00023561,2]
[366786896,1750453836315,-460.0,0.00023561,2]
[366786897,1750453836325,-460.0,0.00023561,2]
[366786898,1750453836335,-239.261586,0.0002357,7]
[366786899,1750453836344,-239.261586,0.0002357,7]
[366786900,1750453836354,-151.0,0.0002357,7]
[366786901,1750453836363,-151.0,0.0002357,7]
[366786902,1750453836374,-153.0,0.00023574,3]
[366786903,1750453836384,-504.13384681,0.0002358,2]
[366786904,1750453836393,-151.0,0.000236,7]
[366786905,1750453836403,-200.527538,0.000236,7]
[366786906,1750453836413,-151.0,0.000236,7]
[366786907,1750453836422,-500.0,0.00023633,2]
[366786908,1750453836432,-500.0,0.00023642,2]
[366786909,1750453836441,-500.0,0.00023658,2]
[366786910,1750453836451,-1194.18929773,0.00023659,9]
[366786911,1750453836460,-151.0,0.00023667,7]
[366786912,1750453836470,-151.0,0.00023667,7]
[366786913,1750453836479,-154.632196,0.00023667,7]
[366786914,1750453836489,-600.0,0.00023673,2]
[366786915,1750453836499,-500.0,0.00023673,2]
[366786916,1750453836509,-500.0,0.00023673,2]
[366786917,1750453836518,-516.47411252,0.00023673,2]
[366786918,1750453836528,-500.0,0.00023673,2]
[366786919,1750453836537,-500.0,0.00023673,2]
[366786920,1750453836548,-516.2677161,0.00023673,2]
[366786921,1750453836558,-500.0,0.00023673,2]
[366786922,1750453836567,-500.0,0.00023673,2]
[366786923,1750453836577,-500.0,0.00023673,2]
[366786924,1750453836586,-500.0,0.00023673,2]
[366786925,1750453836596,-43718.04503109,0.00023687,2]
[366786926,1750453836611,-151.0,0.00023687,7]
[366786927,1750453836622,-151.0,0.00023687,7]
[366786928,1750453836631,-151.0,0.00023687,2]
[366786929,1750453836641,-151.0,0.00023687,7]
[366786930,1750453836651,-151.0,0.00023687,7]
[366786931,1750453836662,-151.0,0.00023687,7]
[366786932,1750453836673,-151.0,0.00023687,7]
[366786933,1750453836682,-151.0,0.00023687,7]
[366786934,1750453836693,-151.0,0.00023687,7]
[366786935,1750453836702,-151.0,0.00023687,7]
[366786936,1750453836712,-151.0,0.00023687,7]
[366786937,1750453836722,-151.0,0.00023687,7]
[366786938,1750453836731,-151.0,0.00023687,7]
[366786939,1750453836741,-239.261586,0.00023687,7]
[366786940,1750453836750,-239.261586,0.00023687,7]
[366786941,1750453836760,-151.0,0.00023687,7]
[366786942,1750453836769,-151.0,0.00023687,7]
[366786943,1750453836779,-151.0,0.00023687,7]
[366786944,1750453836788,-151.0,0.00023687,7]
[366786945,1750453836798,-151.0,0.00023687,7]
[366786946,1750453836807,-151.0,0.00023687,7]
[366786947,1750453836818,-151.0,0.00023687,7]
[366786948,1750453836828,-151.0,0.00023687,7]
[366786949,1750453836838,-151.0,0.00023687,7]
[366786950,1750453836963,-151.0,0.00023687,7]
[366786951,1750453836974,-151.0,0.00023687,7]
[366786952,1750453836984,-151.0,0.00023687,7]
[366786953,1750453836993,-151.0,0.00023687,7]
[366786954,1750453837003,-152.481005,0.00023687,7]
[366786955,1750453837012,-151.0,0.00023687,7]
[366786956,1750453837021,-151.0,0.00023687,7]
[366786957,1750453837031,-151.0,0.00023687,7]
[366786958,1750453837040,-151.0,0.00023687,7]
[366786959,1750453837051,-151.0,0.00023687,7]
[366786960,1750453837060,-151.0,0.00023687,7]
[366786961,1750453837069,-151.0,0.00023687,7]
[366786962,1750453837079,-151.0,0.00023687,7]
[366786963,1750453837088,-151.0,0.00023687,7]
[366786964,1750453837098,-151.0,0.00023687,7]
[366786965,1750453837107,-152.516793,0.00023687,7]
[366786966,1750453837117,-151.0,0.00023687,7]
[366786967,1750453837126,-151.0,0.00023687,7]
[366786968,1750453837135,-23695.44116327,0.0002369,7]
[366786969,1750453837180,-13556.66564946,0.0002369,7]
[366786970,1750453837189,-151.596155,0.0002369,7]
[366786971,1750453837204,-151.0,0.0002369,7]
[366786972,1750453837213,-160.0,0.000237,3]
[366786973,1750453837223,-160.0,0.000237,3]
[366786974,1750453837233,-3645.22,0.000237,7]
[366786975,1750453837243,-151.0,0.000237,7]
[366786976,1750453837253,-151.0,0.000237,7]
[366786977,1750453837262,-182.853656,0.000237,7]
[366786978,1750453837271,-205.5872,0.000237,7]
[366786979,1750453837281,-239.261586,0.000237,7]
[366786980,1750453837290,-239.261586,0.000237,7]
[366786981,1750453837300,-151.0,0.000237,7]
[366786982,1750453837309,-271.2048,0.000237,7]
[366786983,1750453837318,-151.0,0.000237,7]
[366786984,1750453837328,-151.0,0.000237,7]
[366786985,1750453837339,-151.0,0.000237,7]
[366786986,1750453837348,-151.0,0.000237,7]
[366786987,1750453837358,-151.0,0.000237,7]
[366786988,1750453837368,-151.0,0.000237,7]
[366786989,1750453837378,-151.0,0.000237,7]
[366786990,1750453837387,-151.0,0.000237,7]
[366786991,1750453837396,-151.0,0.000237,7]
[366786992,1750453837406,-151.0,0.000237,7]
[366786993,1750453837415,-151.0,0.000237,7]
[366786994,1750453837425,-151.0,0.000237,7]
[366786995,1750453837434,-291.007449,0.000237,7]
[366786996,1750453837444,-151.0,0.000237,7]
[366786997,1750453837454,-523.92420239,0.000237,7]
[366786998,1750453837463,-151.0,0.000237,7]
[366786999,1750453837473,-168.0,0.00023749,2]
[366787000,1750453837482,-151.0,0.00023752,7]
[366787001,1750453837492,-151.0,0.00023752,7]
[366787002,1750453837502,-151.0,0.00023761,6]
[366787003,1750453837511,-306.38280863,0.00023788,2]
[366787004,1750453837521,-151.0,0.00023792,7]
[366787005,1750453837530,-500.0,0.00023798,2]
[366787006,1750453837540,-14130.68231126,0.000238,4]
[366787007,1750453837550,-151.0,0.000238,7]
[366787008,1750453837560,-151.0,0.000238,7]
[366787009,1750453837570,-151.0,0.000238,2]
[366787010,1750453837579,-151.0,0.000238,7]
[366787011,1750453837589,-151.0,0.000238,7]
[366787012,1750453837598,-151.0,0.000238,7]
[366787013,1750453837612,-151.0,0.000238,8]
[366787014,1750453837622,-151.0,0.000238,7]
[366787015,1750453837631,-151.0,0.000238,7]
[366787016,1750453837643,-151.0,0.000238,7]
[366787017,1750453837652,-1194.18929773,0.00023831,10]